[Event "Titled Tuesday Blitz April 25 Early 2023"]
[White "Sonnenschein, Philipp"]
[Black "BenchGM"]
[WhiteFideId "16250877"]
[WhiteElo "2224"]
[BlackElo "2389"]
[Result "0-1"]
[Round "08"]
[TimeControl "180+2"]
[Date "2023.04.25"]
[WhiteClock "0:00:23"]
[BlackClock "0:00:06"]

1. e4 {[%clk 0:03:00]}  e6 {[%clk 0:02:59]} 2. d4 {[%clk 0:03:01]}  d5 {[%clk 0:02:59]} 3. Nd2 {[%clk 0:03:01]}  Nf6 {[%clk 0:02:59]} 4. e5 {[%clk 0:03:00]}  Nfd7 {[%clk 0:02:59]} 5. c3 {[%clk 0:03:00]}  c5 {[%clk 0:02:59]} 6. f4 {[%clk 0:02:59]}  Nc6 {[%clk 0:02:59]} 7. Bd3 {[%clk 0:02:58]}  cxd4 {[%clk 0:02:55]} 8. cxd4 {[%clk 0:02:55]}  Nxd4 {[%clk 0:02:54]} 9. Ngf3 {[%clk 0:02:55]}  Nxf3+ {[%clk 0:02:52]} 10. Nxf3 {[%clk 0:02:52]}  f6 {[%clk 0:02:52]} 11. exf6 {[%clk 0:02:51]}  Nxf6 {[%clk 0:02:51]} 12. Be3 {[%clk 0:02:51]}  Bb4+ {[%clk 0:02:48]} 13. Kf1 {[%clk 0:02:49]}  O-O {[%clk 0:02:47]} 14. a3 {[%clk 0:02:44]}  Bd6 {[%clk 0:02:46]} 15. g3 {[%clk 0:02:43]}  Ne4 {[%clk 0:02:42]} 16. Kg2 {[%clk 0:02:41]}  Qf6 {[%clk 0:02:36]} 17. Bd4 {[%clk 0:02:38]}  Qh6 {[%clk 0:02:21]} 18. Ne5 {[%clk 0:02:32]}  Rxf4 {[%clk 0:02:11]} 19. gxf4 {[%clk 0:02:28]}  Qxf4 {[%clk 0:02:12]} 20. Rf1 {[%clk 0:02:14]}  Qg5+ {[%clk 0:01:47]} 21. Qg4 {[%clk 0:02:11]}  Qd2+ {[%clk 0:01:47]} 22. Qe2 {[%clk 0:02:07]}  Qg5+ {[%clk 0:01:47]} 23. Ng4 {[%clk 0:02:02]}  e5 {[%clk 0:01:41]} 24. Bxe4 {[%clk 0:01:37]}  Bxg4 {[%clk 0:01:33]} 25. Bxd5+ {[%clk 0:01:33]}  Be6+ {[%clk 0:01:33]} 26. Kf2 {[%clk 0:01:27]}  Bxd5 {[%clk 0:01:29]} 27. Be3 {[%clk 0:01:24]}  Qh4+ {[%clk 0:01:28]} 28. Kg1 {[%clk 0:01:24]}  Qe4 {[%clk 0:01:22]} 29. Rfd1 {[%clk 0:00:50]}  Qh1+ {[%clk 0:01:10]} 30. Kf2 {[%clk 0:00:50]}  Rf8+ {[%clk 0:01:11]} 31. Kg3 {[%clk 0:00:51]}  e4+ {[%clk 0:01:02]} 32. Kh3 {[%clk 0:00:49]}  Rf3+ {[%clk 0:01:01]} 33. Kh4 {[%clk 0:00:46]}  Be7+ {[%clk 0:01:01]} 34. Bg5 {[%clk 0:00:43]}  Bxg5+ {[%clk 0:00:41]} 35. Kxg5 {[%clk 0:00:44]}  h6+ {[%clk 0:00:34]} 36. Kh4 {[%clk 0:00:39]}  g5+ {[%clk 0:00:23]} 37. Kg4 {[%clk 0:00:31]}  Be6+ {[%clk 0:00:19]} 38. Kh5 {[%clk 0:00:30]}  Kg7 {[%clk 0:00:07]} 39. Rxh1 {[%clk 0:00:23]}  Rh3# {[%clk 0:00:06]} 0-1


[Site "https://www.chess.com"]

[Event "Titled Tuesday Blitz April 25 Early 2023"]
[White "Gutkin, Ilya"]
[Black "Sadovsky, Artem"]
[WhiteFideId "16203470"]
[BlackFideId "4155840"]
[WhiteElo "2265"]
[BlackElo "2314"]
[Result "0-1"]
[Round "08"]
[TimeControl "180+2"]
[Date "2023.04.25"]
[WhiteClock "0:00:01"]
[BlackClock "0:00:31"]

1. e4 {[%clk 0:03:00]}  g6 {[%clk 0:03:00]} 2. d4 {[%clk 0:03:00]}  Bg7 {[%clk 0:03:00]} 3. Nf3 {[%clk 0:03:00]}  c6 {[%clk 0:03:00]} 4. Nc3 {[%clk 0:02:56]}  d5 {[%clk 0:03:00]} 5. Bg5 {[%clk 0:02:49]}  dxe4 {[%clk 0:02:59]} 6. Nxe4 {[%clk 0:02:49]}  Bg4 {[%clk 0:02:59]} 7. Be2 {[%clk 0:02:45]}  Bxf3 {[%clk 0:02:59]} 8. Bxf3 {[%clk 0:02:46]}  Qxd4 {[%clk 0:03:00]} 9. Qe2 {[%clk 0:02:42]}  Qxb2 {[%clk 0:02:46]} 10. O-O {[%clk 0:02:42]}  Qa3 {[%clk 0:02:41]} 11. Rad1 {[%clk 0:02:26]}  Be5 {[%clk 0:02:30]} 12. Nd2 {[%clk 0:02:10]}  Qc5 {[%clk 0:02:05]} 13. Nb3 {[%clk 0:01:51]}  Bxh2+ {[%clk 0:02:03]} 14. Kxh2 {[%clk 0:01:48]}  Qxg5 {[%clk 0:02:04]} 15. Rfe1 {[%clk 0:01:46]}  Nh6 {[%clk 0:01:59]} 16. Kg1 {[%clk 0:01:19]}  Nf5 {[%clk 0:01:50]} 17. Be4 {[%clk 0:01:17]}  O-O {[%clk 0:01:46]} 18. Bxf5 {[%clk 0:01:17]}  Qxf5 {[%clk 0:01:47]} 19. Qxe7 {[%clk 0:01:17]}  Na6 {[%clk 0:01:29]} 20. Qxb7 {[%clk 0:01:15]}  Qb5 {[%clk 0:01:25]} 21. Qd7 {[%clk 0:01:02]}  Nb4 {[%clk 0:01:23]} 22. c3 {[%clk 0:00:31]}  Nxa2 {[%clk 0:01:20]} 23. Nd4 {[%clk 0:00:31]}  Qd5 {[%clk 0:01:16]} 24. Nxc6 {[%clk 0:00:05]}  Qxd7 {[%clk 0:01:16]} 25. Rxd7 {[%clk 0:00:05]}  Nxc3 {[%clk 0:01:07]} 26. Rxa7 {[%clk 0:00:06]}  Rxa7 {[%clk 0:01:06]} 27. Nxa7 {[%clk 0:00:06]}  Ra8 {[%clk 0:00:58]} 28. Nc6 {[%clk 0:00:07]}  Ra2 {[%clk 0:00:54]} 29. g3 {[%clk 0:00:07]}  Ne2+ {[%clk 0:00:53]} 30. Kg2 {[%clk 0:00:06]}  Rc2 {[%clk 0:00:53]} 31. Ne5 {[%clk 0:00:06]}  Kg7 {[%clk 0:00:51]} 32. Nd3 {[%clk 0:00:05]}  Nc3 {[%clk 0:00:50]} 33. Nf4 {[%clk 0:00:04]}  h5 {[%clk 0:00:47]} 34. Re7 {[%clk 0:00:03]}  Kf8 {[%clk 0:00:45]} 35. Re3 {[%clk 0:00:03]}  Nd1 {[%clk 0:00:42]} 36. Rf3 {[%clk 0:00:02]}  Kg7 {[%clk 0:00:42]} 37. Nd3 {[%clk 0:00:03]}  Rd2 {[%clk 0:00:42]} 38. Nf4 {[%clk 0:00:02]}  Kh6 {[%clk 0:00:39]} 39. Nh3 {[%clk 0:00:01]}  Kg7 {[%clk 0:00:32]} 40. Ng5 {[%clk 0:00:01]}  f5 {[%clk 0:00:31]} 0-1


[Site "https://www.chess.com"]

[Event "Titled Tuesday Blitz April 25 Early 2023"]
[White "Manukian, Artak"]
[Black "Fernandez Garcia, Gumersindo"]
[WhiteFideId "13301373"]
[BlackFideId "24516740"]
[WhiteElo "2130"]
[BlackElo "2093"]
[Result "1-0"]
[Round "08"]
[TimeControl "180+2"]
[Date "2023.04.25"]
[WhiteClock "0:02:35"]
[BlackClock "0:01:23"]

1. e4 {[%clk 0:03:00]}  c5 {[%clk 0:02:58]} 2. Nf3 {[%clk 0:02:59]}  e6 {[%clk 0:02:56]} 3. c3 {[%clk 0:02:58]}  d5 {[%clk 0:02:55]} 4. e5 {[%clk 0:02:58]}  d4 {[%clk 0:02:50]} 5. cxd4 {[%clk 0:02:58]}  cxd4 {[%clk 0:02:51]} 6. Bb5+ {[%clk 0:02:58]}  Bd7 {[%clk 0:02:50]} 7. Nxd4 {[%clk 0:02:57]}  Bc5 {[%clk 0:02:43]} 8. Bxd7+ {[%clk 0:02:56]}  Nxd7 {[%clk 0:02:40]} 9. Nb3 {[%clk 0:02:57]}  Qg5 {[%clk 0:02:19]} 10. O-O {[%clk 0:02:54]}  Qxe5 {[%clk 0:02:15]} 11. d4 {[%clk 0:02:53]}  Bxd4 {[%clk 0:01:52]} 12. Qxd4 {[%clk 0:02:51]}  Ngf6 {[%clk 0:01:47]} 13. Nc3 {[%clk 0:02:45]}  O-O {[%clk 0:01:43]} 14. Qxe5 {[%clk 0:02:45]}  Nxe5 {[%clk 0:01:41]} 15. Bg5 {[%clk 0:02:45]}  Nfd7 {[%clk 0:01:38]} 16. Rad1 {[%clk 0:02:40]}  Rfc8 {[%clk 0:01:33]} 17. f4 {[%clk 0:02:37]}  Nc4 {[%clk 0:01:22]} 18. Rxd7 {[%clk 0:02:36]}  Nxb2 {[%clk 0:01:23]} 19. Ne4 {[%clk 0:02:35]}  f6 {[%clk 0:01:23]} 20. Bxf6 {[%clk 0:02:35]}  gxf6 {[%clk 0:01:22]} 21. Nxf6+ {[%clk 0:02:36]}  Kf8 {[%clk 0:01:22]} 22. Nxh7+ {[%clk 0:02:36]}  Ke8 {[%clk 0:01:23]} 23. Nf6+ {[%clk 0:02:36]}  Kf8 {[%clk 0:01:23]} 24. Nd4 {[%clk 0:02:35]} 1-0


[Site "https://www.chess.com"]

[Event "Titled Tuesday Blitz April 25 Early 2023"]
[White "Namitbir Singh Walia"]
[Black "Mogirzan, Matei-Valeriu"]
[WhiteFideId "35071068"]
[BlackFideId "1257455"]
[WhiteElo "2239"]
[BlackElo "1733"]
[Result "1-0"]
[Round "08"]
[TimeControl "180+2"]
[Date "2023.04.25"]
[WhiteClock "0:00:18"]
[BlackClock "0:00:02"]

1. e4 {[%clk 0:03:00]}  e5 {[%clk 0:02:56]} 2. Nf3 {[%clk 0:03:00]}  Nf6 {[%clk 0:02:55]} 3. Nxe5 {[%clk 0:03:00]}  Nc6 {[%clk 0:02:43]} 4. Nxc6 {[%clk 0:02:57]}  dxc6 {[%clk 0:02:44]} 5. d3 {[%clk 0:02:56]}  Bc5 {[%clk 0:02:44]} 6. h3 {[%clk 0:02:54]}  Bxf2+ {[%clk 0:02:43]} 7. Kxf2 {[%clk 0:02:49]}  Nxe4+ {[%clk 0:02:44]} 8. Kf3 {[%clk 0:02:04]}  O-O {[%clk 0:02:41]} 9. Qe1 {[%clk 0:01:35]}  Qf6+ {[%clk 0:02:05]} 10. Ke2 {[%clk 0:01:32]}  Re8 {[%clk 0:01:46]} 11. dxe4 {[%clk 0:01:30]}  Rxe4+ {[%clk 0:01:38]} 12. Be3 {[%clk 0:01:30]}  Bg4+ {[%clk 0:01:09]} 13. hxg4 {[%clk 0:01:30]}  Rxe3+ {[%clk 0:00:50]} 14. Kxe3 {[%clk 0:01:28]}  Re8+ {[%clk 0:00:50]} 15. Kd2 {[%clk 0:01:25]}  Qf4+ {[%clk 0:00:47]} 16. Kd1 {[%clk 0:01:19]}  Rxe1+ {[%clk 0:00:44]} 17. Kxe1 {[%clk 0:01:20]}  Qc1+ {[%clk 0:00:44]} 18. Kf2 {[%clk 0:01:11]}  Qxb2 {[%clk 0:00:41]} 19. Bd3 {[%clk 0:01:12]}  Qxa1 {[%clk 0:00:38]} 20. Bxh7+ {[%clk 0:00:48]}  Kf8 {[%clk 0:00:37]} 21. Bd3 {[%clk 0:00:48]}  a5 {[%clk 0:00:23]} 22. g5 {[%clk 0:00:37]}  Qxa2 {[%clk 0:00:13]} 23. Nc3 {[%clk 0:00:31]}  Qb2 {[%clk 0:00:11]} 24. Ne2 {[%clk 0:00:24]}  Qe5 {[%clk 0:00:09]} 25. g6 {[%clk 0:00:21]}  fxg6 {[%clk 0:00:05]} 26. g3 {[%clk 0:00:20]}  Ke7 {[%clk 0:00:03]} 27. Nf4 {[%clk 0:00:20]}  Qc5+ {[%clk 0:00:03]} 28. Kf3 {[%clk 0:00:19]}  g5 {[%clk 0:00:02]} 29. Re1+ {[%clk 0:00:19]}  Kf7 {[%clk 0:00:02]} 30. Bg6+ {[%clk 0:00:18]} 1-0


[Site "https://www.chess.com"]

[Event "Titled Tuesday Blitz April 25 Early 2023"]
[White "Ardila, Oscar Humberto"]
[Black "Jovic, Stanoje"]
[WhiteFideId "4404742"]
[BlackFideId "905020"]
[WhiteElo "1918"]
[BlackElo "2236"]
[Result "0-1"]
[Round "08"]
[TimeControl "180+2"]
[Date "2023.04.25"]
[WhiteClock "0:00:14"]
[BlackClock "0:00:09"]

1. d4 {[%clk 0:03:00]}  Nf6 {[%clk 0:02:59]} 2. c4 {[%clk 0:03:00]}  e6 {[%clk 0:02:59]} 3. Nc3 {[%clk 0:03:00]}  Bb4 {[%clk 0:02:59]} 4. Bd2 {[%clk 0:03:00]}  O-O {[%clk 0:02:59]} 5. Nf3 {[%clk 0:03:00]}  b6 {[%clk 0:02:58]} 6. e3 {[%clk 0:03:00]}  Bb7 {[%clk 0:02:58]} 7. Be2 {[%clk 0:03:00]}  Bxc3 {[%clk 0:02:52]} 8. Bxc3 {[%clk 0:03:00]}  Ne4 {[%clk 0:02:52]} 9. Bb4 {[%clk 0:02:58]}  c5 {[%clk 0:02:47]} 10. dxc5 {[%clk 0:02:57]}  bxc5 {[%clk 0:02:47]} 11. Bd2 {[%clk 0:02:54]}  d5 {[%clk 0:02:44]} 12. O-O {[%clk 0:02:53]}  Nc6 {[%clk 0:02:42]} 13. Rc1 {[%clk 0:02:48]}  d4 {[%clk 0:02:39]} 14. exd4 {[%clk 0:02:43]}  cxd4 {[%clk 0:02:38]} 15. Bf4 {[%clk 0:02:35]}  Qf6 {[%clk 0:02:31]} 16. Bg3 {[%clk 0:02:24]}  Rfd8 {[%clk 0:02:23]} 17. Bd3 {[%clk 0:02:21]}  Nxg3 {[%clk 0:02:21]} 18. hxg3 {[%clk 0:02:21]}  Ne5 {[%clk 0:02:19]} 19. Nxe5 {[%clk 0:02:16]}  Qxe5 {[%clk 0:02:19]} 20. Re1 {[%clk 0:02:16]}  Qc5 {[%clk 0:02:17]} 21. Qd2 {[%clk 0:02:13]}  a5 {[%clk 0:02:15]} 22. f4 {[%clk 0:02:12]}  g6 {[%clk 0:02:08]} 23. Re5 {[%clk 0:02:11]}  Qb4 {[%clk 0:02:02]} 24. Qf2 {[%clk 0:01:59]}  Bc6 {[%clk 0:01:55]} 25. g4 {[%clk 0:01:53]}  Rab8 {[%clk 0:01:25]} 26. Rc2 {[%clk 0:01:50]}  a4 {[%clk 0:01:14]} 27. f5 {[%clk 0:01:48]}  exf5 {[%clk 0:01:11]} 28. gxf5 {[%clk 0:01:46]}  Qd6 {[%clk 0:01:09]} 29. Rce2 {[%clk 0:01:43]}  Rxb2 {[%clk 0:01:04]} 30. fxg6 {[%clk 0:01:41]}  hxg6 {[%clk 0:01:04]} 31. Rxb2 {[%clk 0:01:14]}  Qxe5 {[%clk 0:01:03]} 32. Re2 {[%clk 0:01:15]}  Qg5 {[%clk 0:01:00]} 33. Re1 {[%clk 0:00:36]}  a3 {[%clk 0:00:56]} 34. Rf1 {[%clk 0:00:33]}  Rd7 {[%clk 0:00:55]} 35. Re1 {[%clk 0:00:31]}  Rb7 {[%clk 0:00:54]} 36. c5 {[%clk 0:00:24]}  Rb2 {[%clk 0:00:50]} 37. Re2 {[%clk 0:00:25]}  Rxe2 {[%clk 0:00:47]} 38. Qxe2 {[%clk 0:00:25]}  Qxc5 {[%clk 0:00:46]} 39. Qg4 {[%clk 0:00:21]}  Qc1+ {[%clk 0:00:41]} 40. Kh2 {[%clk 0:00:21]}  Qe3 {[%clk 0:00:34]} 41. Bxg6 {[%clk 0:00:19]}  Qe5+ {[%clk 0:00:26]} 42. Kg1 {[%clk 0:00:18]}  Kf8 {[%clk 0:00:20]} 43. Qc8+ {[%clk 0:00:17]}  Be8 {[%clk 0:00:20]} 44. Bd3 {[%clk 0:00:16]}  Qe3+ {[%clk 0:00:19]} 45. Kh2 {[%clk 0:00:16]}  Qxd3 {[%clk 0:00:18]} 46. Qc5+ {[%clk 0:00:16]}  Kg7 {[%clk 0:00:14]} 47. Qe5+ {[%clk 0:00:16]}  f6 {[%clk 0:00:13]} 48. Qe7+ {[%clk 0:00:15]}  Bf7 {[%clk 0:00:12]} 49. Qd6 {[%clk 0:00:14]}  Qe3 {[%clk 0:00:10]} 50. Kh1 {[%clk 0:00:14]}  d3 {[%clk 0:00:09]} 0-1


[Site "https://www.chess.com"]

[Event "Titled Tuesday Blitz April 25 Early 2023"]
[White "sebastianmarinp"]
[Black "Heinemann, Josefine"]
[BlackFideId "12900460"]
[WhiteElo "2317"]
[BlackElo "2342"]
[Result "1-0"]
[Round "08"]
[TimeControl "180+2"]
[Date "2023.04.25"]
[WhiteClock "0:00:03"]
[BlackClock "0:00:15"]

1. e4 {[%clk 0:03:00]}  c6 {[%clk 0:02:58]} 2. d4 {[%clk 0:02:59]}  d5 {[%clk 0:02:50]} 3. e5 {[%clk 0:02:58]}  Bf5 {[%clk 0:02:49]} 4. Nf3 {[%clk 0:02:58]}  e6 {[%clk 0:02:48]} 5. Be2 {[%clk 0:02:58]}  Nd7 {[%clk 0:02:44]} 6. O-O {[%clk 0:02:57]}  Ne7 {[%clk 0:02:31]} 7. Nbd2 {[%clk 0:02:55]}  h6 {[%clk 0:02:28]} 8. Nb3 {[%clk 0:02:54]}  Bh7 {[%clk 0:02:26]} 9. a4 {[%clk 0:02:52]}  Nf5 {[%clk 0:02:23]} 10. a5 {[%clk 0:02:49]}  a6 {[%clk 0:02:21]} 11. c4 {[%clk 0:02:22]}  Be7 {[%clk 0:02:19]} 12. Bd3 {[%clk 0:01:48]}  O-O {[%clk 0:02:16]} 13. Qc2 {[%clk 0:01:28]}  dxc4 {[%clk 0:01:59]} 14. Qxc4 {[%clk 0:01:29]}  Rc8 {[%clk 0:01:58]} 15. Bd2 {[%clk 0:01:06]}  Qc7 {[%clk 0:01:38]} 16. Bb4 {[%clk 0:00:57]}  Bxb4 {[%clk 0:01:37]} 17. Qxb4 {[%clk 0:00:58]}  c5 {[%clk 0:01:30]} 18. dxc5 {[%clk 0:00:51]}  Nxc5 {[%clk 0:01:31]} 19. Bxf5 {[%clk 0:00:46]}  Bxf5 {[%clk 0:01:30]} 20. Rac1 {[%clk 0:00:45]}  Nd3 {[%clk 0:01:28]} 21. Rxc7 {[%clk 0:00:44]}  Nxb4 {[%clk 0:01:27]} 22. Rxb7 {[%clk 0:00:44]}  Rb8 {[%clk 0:01:24]} 23. Rxb8 {[%clk 0:00:35]}  Rxb8 {[%clk 0:01:25]} 24. Nfd4 {[%clk 0:00:30]}  Nd3 {[%clk 0:01:20]} 25. Nxf5 {[%clk 0:00:21]}  Rxb3 {[%clk 0:01:07]} 26. Ne7+ {[%clk 0:00:18]}  Kf8 {[%clk 0:01:05]} 27. Nc6 {[%clk 0:00:18]}  Rxb2 {[%clk 0:01:03]} 28. h3 {[%clk 0:00:14]}  g5 {[%clk 0:01:03]} 29. Rd1 {[%clk 0:00:13]}  Nxf2 {[%clk 0:00:53]} 30. Rd8+ {[%clk 0:00:12]}  Kg7 {[%clk 0:00:52]} 31. Ra8 {[%clk 0:00:11]}  Ne4 {[%clk 0:00:50]} 32. Rxa6 {[%clk 0:00:10]}  Rb1+ {[%clk 0:00:50]} 33. Kh2 {[%clk 0:00:09]}  h5 {[%clk 0:00:50]} 34. Rb6 {[%clk 0:00:07]}  Ra1 {[%clk 0:00:49]} 35. Rb4 {[%clk 0:00:07]}  Nd2 {[%clk 0:00:42]} 36. Rd4 {[%clk 0:00:03]}  Nf1+ {[%clk 0:00:41]} 37. Kg1 {[%clk 0:00:02]}  Nd2+ {[%clk 0:00:25]} 38. Kf2 {[%clk 0:00:03]}  Nb3 {[%clk 0:00:26]} 39. Rd7 {[%clk 0:00:03]}  Nxa5 {[%clk 0:00:26]} 40. Nd8 {[%clk 0:00:03]}  Ra2+ {[%clk 0:00:24]} 41. Kg3 {[%clk 0:00:03]}  Ra3+ {[%clk 0:00:23]} 42. Kh2 {[%clk 0:00:03]}  Nc4 {[%clk 0:00:22]} 43. Nxe6+ {[%clk 0:00:03]}  Kg6 {[%clk 0:00:20]} 44. Nf8+ {[%clk 0:00:03]}  Kf5 {[%clk 0:00:20]} 45. Rxf7+ {[%clk 0:00:03]}  Kxe5 {[%clk 0:00:20]} 46. Ng6+ {[%clk 0:00:03]}  Ke6 {[%clk 0:00:19]} 47. Rf3 {[%clk 0:00:03]}  Rxf3 {[%clk 0:00:18]} 48. gxf3 {[%clk 0:00:04]}  Kf5 {[%clk 0:00:16]} 49. Ne7+ {[%clk 0:00:03]}  Kf4 {[%clk 0:00:15]} 50. Kg2 {[%clk 0:00:03]}  Ne3+ {[%clk 0:00:15]} 51. Kf2 {[%clk 0:00:04]}  Nf5 {[%clk 0:00:15]} 52. Ng6# {[%clk 0:00:03]} 1-0


[Site "https://www.chess.com"]

[Event "Titled Tuesday Blitz April 25 Early 2023"]
[White "Grossboss19"]
[Black "Balla, Tamas-Kristof"]
[BlackFideId "1208497"]
[WhiteElo "2308"]
[BlackElo "2334"]
[Result "0-1"]
[Round "08"]
[TimeControl "180+2"]
[Date "2023.04.25"]
[WhiteClock "0:00:09"]
[BlackClock "0:00:14"]

1. e4 {[%clk 0:03:00]}  c5 {[%clk 0:03:00]} 2. d3 {[%clk 0:02:59]}  Nc6 {[%clk 0:02:58]} 3. Nf3 {[%clk 0:02:58]}  g6 {[%clk 0:02:58]} 4. g3 {[%clk 0:02:52]}  Bg7 {[%clk 0:02:58]} 5. Bg2 {[%clk 0:02:53]}  e6 {[%clk 0:02:57]} 6. O-O {[%clk 0:02:48]}  Nge7 {[%clk 0:02:58]} 7. c3 {[%clk 0:02:47]}  O-O {[%clk 0:02:57]} 8. Re1 {[%clk 0:02:42]}  d6 {[%clk 0:02:57]} 9. Be3 {[%clk 0:02:39]}  Rb8 {[%clk 0:02:56]} 10. a4 {[%clk 0:02:38]}  a6 {[%clk 0:02:56]} 11. Nbd2 {[%clk 0:02:20]}  b5 {[%clk 0:02:56]} 12. axb5 {[%clk 0:02:21]}  axb5 {[%clk 0:02:57]} 13. h4 {[%clk 0:02:18]}  b4 {[%clk 0:02:49]} 14. Rc1 {[%clk 0:02:15]}  bxc3 {[%clk 0:02:38]} 15. bxc3 {[%clk 0:02:16]}  h5 {[%clk 0:02:35]} 16. d4 {[%clk 0:02:09]}  cxd4 {[%clk 0:02:32]} 17. cxd4 {[%clk 0:02:10]}  Nb4 {[%clk 0:02:31]} 18. Nc4 {[%clk 0:02:04]}  Ba6 {[%clk 0:02:28]} 19. Bf4 {[%clk 0:02:02]}  d5 {[%clk 0:01:34]} 20. exd5 {[%clk 0:01:43]}  exd5 {[%clk 0:01:27]} 21. Bd6 {[%clk 0:01:35]}  Rb7 {[%clk 0:01:20]} 22. Bxe7 {[%clk 0:01:10]}  Rxe7 {[%clk 0:01:20]} 23. Nce5 {[%clk 0:01:09]}  Bxe5 {[%clk 0:00:52]} 24. Nxe5 {[%clk 0:01:07]}  Qd6 {[%clk 0:00:38]} 25. Qd2 {[%clk 0:00:55]}  Rfe8 {[%clk 0:00:36]} 26. Qh6 {[%clk 0:00:47]}  Nd3 {[%clk 0:00:23]} 27. Nxd3 {[%clk 0:00:45]}  Bxd3 {[%clk 0:00:24]} 28. Rxe7 {[%clk 0:00:44]}  Qxe7 {[%clk 0:00:18]} 29. Bxd5 {[%clk 0:00:43]}  Qd6 {[%clk 0:00:12]} 30. Bb3 {[%clk 0:00:39]}  Qxd4 {[%clk 0:00:10]} 31. Qd2 {[%clk 0:00:13]}  Qe4 {[%clk 0:00:08]} 32. Rd1 {[%clk 0:00:08]}  Be2 {[%clk 0:00:08]} 33. Re1 {[%clk 0:00:08]}  Qf3 {[%clk 0:00:07]} 34. Qd5 {[%clk 0:00:07]}  Qxd5 {[%clk 0:00:04]} 35. Bxd5 {[%clk 0:00:08]}  Bb5 {[%clk 0:00:05]} 36. Rxe8+ {[%clk 0:00:08]}  Bxe8 {[%clk 0:00:06]} 37. f4 {[%clk 0:00:09]}  Kg7 {[%clk 0:00:06]} 38. Kf2 {[%clk 0:00:09]}  Bd7 {[%clk 0:00:07]} 39. Ke3 {[%clk 0:00:09]}  Kf6 {[%clk 0:00:08]} 40. Be4 {[%clk 0:00:10]}  Bf5 {[%clk 0:00:08]} 41. Kd4 {[%clk 0:00:09]}  Be6 {[%clk 0:00:08]} 42. Kc5 {[%clk 0:00:09]}  Bf5 {[%clk 0:00:08]} 43. Kd5 {[%clk 0:00:10]}  Bxe4+ {[%clk 0:00:08]} 44. Kxe4 {[%clk 0:00:10]}  Ke6 {[%clk 0:00:09]} 45. Kd4 {[%clk 0:00:07]}  Kf5 {[%clk 0:00:09]} 46. Ke3 {[%clk 0:00:08]}  Kg4 {[%clk 0:00:10]} 47. Kf2 {[%clk 0:00:08]}  Kh3 {[%clk 0:00:10]} 48. Kf3 {[%clk 0:00:08]}  f5 {[%clk 0:00:09]} 49. Kf2 {[%clk 0:00:08]}  Kh2 {[%clk 0:00:10]} 50. Kf3 {[%clk 0:00:07]}  Kg1 {[%clk 0:00:10]} 51. Ke3 {[%clk 0:00:05]}  Kg2 {[%clk 0:00:11]} 52. Kd4 {[%clk 0:00:05]}  Kxg3 {[%clk 0:00:11]} 53. Ke5 {[%clk 0:00:06]}  Kxh4 {[%clk 0:00:12]} 54. Kf6 {[%clk 0:00:07]}  Kg4 {[%clk 0:00:12]} 55. Kxg6 {[%clk 0:00:08]}  Kxf4 {[%clk 0:00:13]} 56. Kxh5 {[%clk 0:00:09]}  Ke3 {[%clk 0:00:14]} 57. Kh4 {[%clk 0:00:09]}  f4 {[%clk 0:00:14]} 0-1


[Site "https://www.chess.com"]

[Event "Titled Tuesday Blitz April 25 Early 2023"]
[White "Vivas Zamora, Fabian Ernesto"]
[Black "Schut, Han"]
[WhiteFideId "3902480"]
[BlackFideId "1005561"]
[WhiteElo "2262"]
[BlackElo "2024"]
[Result "1-0"]
[Round "08"]
[TimeControl "180+2"]
[Date "2023.04.25"]
[WhiteClock "0:01:48"]
[BlackClock "0:01:50"]

1. e4 {[%clk 0:03:00]}  c5 {[%clk 0:02:56]} 2. Nc3 {[%clk 0:03:00]}  Nc6 {[%clk 0:02:56]} 3. Bb5 {[%clk 0:03:00]}  Nd4 {[%clk 0:02:55]} 4. Nf3 {[%clk 0:03:00]}  Nxb5 {[%clk 0:02:52]} 5. Nxb5 {[%clk 0:03:01]}  g6 {[%clk 0:02:50]} 6. d4 {[%clk 0:03:00]}  Qa5+ {[%clk 0:02:35]} 7. Nc3 {[%clk 0:02:59]}  Bg7 {[%clk 0:02:29]} 8. e5 {[%clk 0:02:21]}  cxd4 {[%clk 0:02:24]} 9. Qxd4 {[%clk 0:02:22]}  d6 {[%clk 0:02:13]} 10. Bf4 {[%clk 0:02:19]}  Bg4 {[%clk 0:02:04]} 11. Qd5 {[%clk 0:01:49]}  Bxf3 {[%clk 0:01:50]} 12. Qxa5 {[%clk 0:01:48]} 1-0


[Site "https://www.chess.com"]

[Event "Titled Tuesday Blitz April 25 Early 2023"]
[White "Ramirez, Maria Eugenia"]
[Black "Kielinkei"]
[WhiteFideId "3301680"]
[WhiteElo "1842"]
[BlackElo "2427"]
[Result "1-0"]
[Round "08"]
[TimeControl "180+2"]
[Date "2023.04.25"]
[WhiteClock "0:00:49"]
[BlackClock "0:00:01"]

1. e4 {[%clk 0:03:00]}  c5 {[%clk 0:02:58]} 2. c3 {[%clk 0:03:00]}  Nf6 {[%clk 0:02:55]} 3. e5 {[%clk 0:02:59]}  Nd5 {[%clk 0:02:56]} 4. g3 {[%clk 0:03:00]}  d6 {[%clk 0:02:55]} 5. exd6 {[%clk 0:03:00]}  e6 {[%clk 0:02:49]} 6. Bg2 {[%clk 0:02:59]}  Bxd6 {[%clk 0:02:48]} 7. Nf3 {[%clk 0:02:59]}  O-O {[%clk 0:02:47]} 8. O-O {[%clk 0:02:59]}  Nc6 {[%clk 0:02:48]} 9. Na3 {[%clk 0:02:59]}  b6 {[%clk 0:02:30]} 10. c4 {[%clk 0:02:45]}  Nde7 {[%clk 0:02:20]} 11. Nb5 {[%clk 0:02:44]}  Bb8 {[%clk 0:02:15]} 12. d4 {[%clk 0:02:36]}  a6 {[%clk 0:02:07]} 13. Nc3 {[%clk 0:02:32]}  cxd4 {[%clk 0:02:05]} 14. Nxd4 {[%clk 0:02:31]}  Bb7 {[%clk 0:02:02]} 15. Be3 {[%clk 0:02:24]}  Qc8 {[%clk 0:01:55]} 16. Qe2 {[%clk 0:02:20]}  Nxd4 {[%clk 0:01:52]} 17. Bxd4 {[%clk 0:02:19]}  Bxg2 {[%clk 0:01:52]} 18. Kxg2 {[%clk 0:02:19]}  Nf5 {[%clk 0:01:43]} 19. Rfd1 {[%clk 0:01:55]}  Nxd4 {[%clk 0:01:31]} 20. Rxd4 {[%clk 0:01:55]}  Qc6+ {[%clk 0:01:20]} 21. Qf3 {[%clk 0:01:52]}  Qxf3+ {[%clk 0:01:16]} 22. Kxf3 {[%clk 0:01:52]}  Be5 {[%clk 0:01:17]} 23. Rd3 {[%clk 0:01:50]}  Bxc3 {[%clk 0:01:10]} 24. Rxc3 {[%clk 0:01:50]}  Rfd8 {[%clk 0:01:09]} 25. Rac1 {[%clk 0:01:47]}  Rd2 {[%clk 0:01:06]} 26. R1c2 {[%clk 0:01:47]}  Rad8 {[%clk 0:01:05]} 27. Ke3 {[%clk 0:01:45]}  Rd1 {[%clk 0:00:56]} 28. b4 {[%clk 0:01:42]}  R8d6 {[%clk 0:00:33]} 29. c5 {[%clk 0:01:41]}  bxc5 {[%clk 0:00:34]} 30. Rxc5 {[%clk 0:01:41]}  g6 {[%clk 0:00:27]} 31. Rc6 {[%clk 0:01:39]}  Kf8 {[%clk 0:00:21]} 32. Rxd6 {[%clk 0:01:28]}  Rxd6 {[%clk 0:00:21]} 33. Rc7 {[%clk 0:01:24]}  Kg7 {[%clk 0:00:16]} 34. a4 {[%clk 0:01:22]}  Rb6 {[%clk 0:00:13]} 35. Rc4 {[%clk 0:01:19]}  e5 {[%clk 0:00:11]} 36. Ke4 {[%clk 0:01:17]}  Kf6 {[%clk 0:00:10]} 37. Kd5 {[%clk 0:01:17]}  Rb8 {[%clk 0:00:04]} 38. Rc6+ {[%clk 0:01:11]}  Kf5 {[%clk 0:00:03]} 39. Kc5 {[%clk 0:01:09]}  Rd8 {[%clk 0:00:01]} 40. Rxa6 {[%clk 0:01:07]}  Rd2 {[%clk 0:00:02]} 41. Ra7 {[%clk 0:01:05]}  f6 {[%clk 0:00:02]} 42. f3 {[%clk 0:00:59]}  Rxh2 {[%clk 0:00:01]} 43. b5 {[%clk 0:00:58]}  Rf2 {[%clk 0:00:01]} 44. g4+ {[%clk 0:00:49]} 1-0


[Site "https://www.chess.com"]